bitfinex/quotes_BTCUSD_20220218
["timestamp","ask_amount","ask_price","bid_price","bid_amount"]
[1645181423679,0.3,40879.0,40873.0,0.00010906]
[1645181425830,0.3,40879.0,40873.0,0.00310906]
[1645181426931,0.26294571,40874.0,40873.0,0.00010906]
[1645181427131,0.3,40879.0,40873.0,0.00010906]
[1645181427132,0.27380922,40876.0,40873.0,0.00010906]
[1645181427732,0.27380922,40876.0,40873.0,0.00210906]
[1645181428131,0.25484789,40874.0,40873.0,0.00210906]
[1645181428331,0.25484789,40874.0,40873.0,0.002]
[1645181428991,0.25484789,40874.0,40870.0,0.00042314]
[1645181429188,0.25484789,40874.0,40866.0,0.183603]
[1645181429388,0.25484789,40874.0,40870.0,0.00042313]
[1645181429689,0.061207,40873.0,40870.0,0.00042313]
[1645181430087,0.061207,40873.0,40870.0,0.00035309]
[1645181430288,0.061207,40873.0,40862.0,0.53171911]
[1645181430587,0.061207,40873.0,40866.0,0.331304]
[1645181430788,0.27816011,40871.0,40866.0,0.331304]
[1645181430987,0.27816011,40871.0,40866.0,0.39251]
[1645181431889,0.27816011,40871.0,40866.0,0.33172714]
[1645181432089,0.27316011,40871.0,40866.0,0.33172714]
[1645181432730,0.27316011,40871.0,40866.0,0.39250908]
[1645181432930,0.27316011,40871.0,40866.0,0.33172714]
[1645181433330,0.27316011,40871.0,40868.0,0.00011014]
[1645181433530,0.061207,40873.0,40868.0,0.00011014]
[1645181433931,0.19186888,40870.0,40868.0,0.00011014]
[1645181434133,0.19186888,40870.0,40868.0,0.00053327]
[1645181434532,0.2636635,40869.0,40868.0,0.00053327]
[1645181434734,0.58116039,40869.0,40868.0,0.00053327]
[1645181435333,0.58116039,40869.0,40868.0,0.00011014]
[1645181436482,0.70359739,40869.0,40868.0,0.00011014]
[1645181437883,0.70459739,40869.0,40868.0,0.00011014]
[1645181438083,0.58216039,40869.0,40868.0,0.00011014]
[1645181438283,0.58260356,40869.0,40866.0,0.00052198]
[1645181438484,0.27687615,40868.0,40866.0,0.00052198]
[1645181438884,0.56410667,40869.0,40866.0,0.00011014]
[1645181439736,0.62532467,40869.0,40866.0,0.00011014]
[1645181440929,0.32532467,40869.0,40866.0,0.00011014]
[1645181441332,0.00260346,40868.0,40866.0,0.00011014]
[1645181441530,0.00260346,40868.0,40866.0,0.00211014]
[1645181441932,0.00260346,40868.0,40867.0,0.331304]
[1645181442133,0.02010035,40868.0,40867.0,0.331304]
[1645181442629,0.01510035,40868.0,40867.0,0.331304]
[1645181443482,0.01510035,40868.0,40867.0,0.33141435]
[1645181443682,0.01510035,40868.0,40867.0,0.33241435]
[1645181444282,0.00170904,40869.0,40867.0,0.33241435]
[1645181445784,0.00170904,40869.0,40867.0,0.33341435]
[1645181446187,0.00242989,40868.0,40867.0,0.33341435]
[1645181446885,0.00242989,40868.0,40867.0,0.33141435]
[1645181448436,0.00242989,40868.0,40867.0,0.05011035]
[1645181448736,0.00242989,40868.0,40867.0,0.33141435]
[1645181449237,0.00170904,40869.0,40868.0,0.00485977]
[1645181449436,0.00170904,40869.0,40868.0,0.33616377]
[1645181453182,0.00170904,40869.0,40868.0,0.33627391]
[1645181455738,0.00170904,40869.0,40868.0,0.33827391]
[1645181456338,0.00405165,40869.0,40868.0,0.33827391]
[1645181456740,0.00405165,40869.0,40868.0,0.00696991]
[1645181456942,0.00405165,40869.0,40868.0,0.00496991]
[1645181458140,0.00360848,40869.0,40868.0,0.00496991]
[1645181458589,0.00360848,40869.0,40868.0,0.33627391]
[1645181459588,0.00360848,40869.0,40868.0,0.33827391]
[1645181461089,0.00360848,40869.0,40868.0,0.33627391]
[1645181461690,0.00360848,40869.0,40868.0,0.33827391]
[1645181462834,0.00360848,40869.0,40868.0,0.33627391]
[1645181463635,0.00360848,40869.0,40868.0,0.33827391]
[1645181465039,0.00360848,40869.0,40868.0,0.33627391]
[1645181465638,0.00360848,40869.0,40868.0,0.33827391]
[1645181466492,0.00246123,40869.0,40868.0,0.33827391]
[1645181466895,0.00246123,40869.0,40868.0,0.33627391]
[1645181467693,0.00246123,40869.0,40868.0,0.33827391]
[1645181468895,0.00246123,40869.0,40868.0,0.33627391]
[1645181469297,0.00246123,40869.0,40868.0,0.43627391]
[1645181469837,0.00246123,40869.0,40868.0,0.73927391]
[1645181471038,0.00246123,40869.0,40868.0,0.73627391]
[1645181471540,0.00503586,40869.0,40868.0,0.73627391]
[1645181471740,0.00503586,40869.0,40868.0,0.73827391]
[1645181473583,0.00503586,40869.0,40868.0,0.73627391]
[1645181473783,0.00503586,40869.0,40868.0,0.43827391]
[1645181474785,0.00503586,40869.0,40868.0,0.33827391]
[1645181474987,0.00503586,40869.0,40868.0,0.00496991]
[1645181475387,0.00503586,40869.0,40868.0,0.33627391]
[1645181478239,0.00503586,40869.0,40868.0,0.00496991]
[1645181478834,0.00503586,40869.0,40868.0,0.33627391]
[1645181479836,0.00503586,40869.0,40868.0,0.33827391]
[1645181481096,0.00494224,40869.0,40868.0,0.33627391]
[1645181481697,0.00494224,40869.0,40868.0,0.33827391]
[1645181483096,0.00494224,40869.0,40868.0,0.33627391]
[1645181483797,0.00494224,40869.0,40868.0,0.33827391]
[1645181485666,0.00494224,40869.0,40868.0,0.34027391]
[1645181486968,0.00494224,40869.0,40868.0,0.33627391]
[1645181490290,0.00494224,40869.0,40868.0,0.33827391]
[1645181491592,0.00494224,40869.0,40868.0,0.33627391]
[1645181492241,0.14595151,40876.0,40869.0,0.00988447]
[1645181492434,0.0733921,40877.0,40871.0,0.26453346]
[1645181494637,0.0733921,40877.0,40871.0,0.26553346]
[1645181495836,0.0733921,40877.0,40871.0,0.26453346]
[1645181496487,0.00133022,40876.0,40871.0,0.26553346]
[1645181497290,0.00133022,40876.0,40871.0,0.062199]
[1645181497887,0.00133022,40876.0,40871.0,0.061199]
[1645181498288,0.00133022,40876.0,40873.0,0.00014668]
[1645181500532,0.00133022,40876.0,40873.0,0.00114668]
[1645181501536,0.27132093,40874.0,40873.0,0.00114668]
[1645181501733,0.27132093,40874.0,40873.0,0.00014668]
[1645181501932,0.00133022,40876.0,40873.0,0.00014668]
[1645181502532,0.00133022,40876.0,40873.0,0.00114668]
[1645181502933,0.56332413,40875.0,40873.0,0.00114668]
[1645181503132,0.56332413,40875.0,40873.0,0.001]
[1645181503782,0.56332413,40875.0,40871.0,0.061199]
[1645181504384,0.29935975,40875.0,40871.0,0.061199]
[1645181504581,0.29935975,40875.0,40871.0,0.062199]
[1645181505783,0.29935975,40875.0,40871.0,0.061199]
[1645181506385,0.00156834,40874.0,40871.0,0.061199]
[1645181508235,0.00156834,40874.0,40873.0,0.00011735]
[1645181510638,0.00156834,40874.0,40873.0,0.00111735]
[1645181512490,0.00156834,40874.0,40873.0,0.00011735]
[1645181512690,0.00356834,40874.0,40873.0,0.00011735]
[1645181513091,0.00356834,40874.0,40873.0,4.98e-05]
[1645181513291,0.00356834,40874.0,40873.0,0.00011735]
[1645181513892,0.00156834,40874.0,40873.0,0.00011735]
[1645181514596,0.00356834,40874.0,40873.0,0.00011735]
[1645181515838,0.00156834,40874.0,40873.0,0.00011735]
[1645181516637,0.00156834,40874.0,40873.0,0.00111735]
[1645181517939,0.00156834,40874.0,40873.0,0.00011735]
[1645181518787,0.00356834,40874.0,40873.0,0.00011735]
[1645181519894,0.00156834,40874.0,40873.0,0.00011735]
[1645181520692,0.00156834,40874.0,40873.0,0.00111735]
[1645181521992,0.00156834,40874.0,40873.0,0.00011735]
[1645181522642,0.00156834,40874.0,40873.0,0.00111735]
[1645181523941,0.00156834,40874.0,40873.0,0.00011735]
[1645181524741,0.00356834,40874.0,40873.0,0.00011735]
[1645181526086,0.00156834,40874.0,40873.0,0.00011735]
[1645181526686,0.00256834,40874.0,40873.0,0.00011735]
[1645181527888,0.00156834,40874.0,40873.0,0.00011735]
[1645181528286,0.00156834,40874.0,40871.0,0.11130959]
[1645181528687,0.00356834,40874.0,40871.0,0.11130959]
[1645181529940,0.00156834,40874.0,40871.0,0.11130959]
[1645181530145,0.21289827,40873.0,40871.0,0.11130959]
[1645181531441,0.21426999,40873.0,40871.0,0.11130959]
[1645181532746,0.21426999,40873.0,40871.0,0.06130959]
[1645181533243,0.21394185,40873.0,40871.0,0.06130959]
[1645181533689,0.00137172,40873.0,40871.0,0.06130959]
[1645181534290,0.00137172,40873.0,40872.0,0.331304]
[1645181534490,0.00137172,40873.0,40871.0,0.06130959]
[1645181534692,0.00137172,40873.0,40872.0,0.331304]
[1645181534894,0.00137172,40873.0,40871.0,0.06230959]
[1645181535092,0.00137172,40873.0,40872.0,0.331304]
[1645181535296,0.00137172,40873.0,40871.0,0.06230959]
[1645181535492,0.00137172,40873.0,40872.0,0.331304]
[1645181535792,0.00137172,40873.0,40871.0,0.06230959]
[1645181535991,0.00137172,40873.0,40871.0,0.06130959]
[1645181536592,0.00137172,40873.0,40871.0,0.06230959]
[1645181536793,0.00137172,40873.0,40872.0,0.331304]
[1645181536992,0.00137172,40873.0,40871.0,0.06230959]
[1645181537236,0.00137172,40873.0,40872.0,0.331304]
[1645181537537,0.00137172,40873.0,40871.0,0.06230959]
[1645181537941,0.00137172,40873.0,40871.0,0.06130959]
[1645181542288,0.00137172,40873.0,40872.0,0.331304]
[1645181542487,0.00137172,40873.0,40871.0,0.06130959]
[1645181547454,0.00137172,40873.0,40871.0,0.00011059]
[1645181548258,0.00137172,40873.0,40870.0,0.12289672]
[1645181548491,0.27198876,40872.0,40870.0,0.12289672]
[1645181548895,0.27198876,40872.0,40870.0,0.17289672]
[1645181549093,0.00137172,40873.0,40870.0,0.17289672]
[1645181549292,0.00137172,40873.0,40870.0,0.17250076]
[1645181549493,0.00137172,40873.0,40871.0,0.331304]
[1645181549693,0.00137172,40873.0,40870.0,0.17250076]
[1645181550295,0.00137172,40873.0,40870.0,0.05011076]
[1645181550698,0.00137172,40873.0,40870.0,0.00011076]
[1645181551402,0.32044527,40873.0,40870.0,0.00011076]
[1645181552842,0.00137172,40873.0,40870.0,0.00011076]
[1645181553243,0.00137172,40873.0,40869.0,0.01669119]
[1645181553842,0.061207,40872.0,40869.0,0.01669119]
[1645181554043,0.061207,40872.0,40869.0,0.01629523]
[1645181554044,0.34236123,40872.0,40869.0,0.01629523]
[1645181554243,0.34236123,40872.0,40869.0,0.00999523]
[1645181555746,0.54918192,40872.0,40869.0,0.00999523]
[1645181556888,0.55058795,40872.0,40869.0,0.00999523]
[1645181557989,0.55058795,40872.0,40869.0,0.00987998]
[1645181558187,0.55058795,40872.0,40871.0,0.00011093]
[1645181558188,0.26943372,40872.0,40871.0,0.00011093]
[1645181559188,0.06261303,40872.0,40871.0,0.00011093]
[1645181563247,0.06261303,40872.0,40869.0,0.01027611]
[1645181563693,0.06261303,40872.0,40869.0,0.00988015]
[1645181566405,0.06261303,40872.0,40869.0,0.00011093]
[1645181568143,0.06261303,40872.0,40868.0,0.0617139]
[1645181568342,0.00140603,40872.0,40868.0,0.0617139]
[1645181568543,0.00140603,40872.0,40868.0,0.06131793]
[1645181568743,0.00140603,40872.0,40868.0,0.1137139]
[1645181569744,0.00140603,40872.0,40868.0,0.11331793]
[1645181569945,0.00140603,40872.0,40868.0,0.1137139]
[1645181570645,0.00140603,40872.0,40868.0,0.1117139]
[1645181570845,0.00140603,40872.0,40868.0,0.1137139]
[1645181571095,0.00140603,40872.0,40868.0,0.0637139]
[1645181571296,0.06261303,40872.0,40868.0,0.0637139]
[1645181572197,0.06249595,40872.0,40868.0,0.00011093]
[1645181572397,0.06249595,40872.0,40868.0,0.0005069]
[1645181572896,0.06249595,40872.0,40868.0,0.0617129]
[1645181573297,0.06249595,40872.0,40870.0,0.00011111]
[1645181576743,0.0094,40871.0,40870.0,0.00011111]
[1645181578345,0.0094,40871.0,40869.0,0.00011093]
[1645181578992,0.06249595,40872.0,40869.0,0.33141493]
[1645181578993,0.00128895,40872.0,40869.0,0.33141493]
[1645181579199,0.00128895,40872.0,40871.0,0.359504]
[1645181579696,0.00128895,40872.0,40871.0,0.409504]
[1645181580694,0.00128895,40872.0,40871.0,0.47069437]
[1645181580893,0.00128895,40872.0,40871.0,0.47269437]
[1645181581494,0.00031436,40877.0,40872.0,0.12238]
[1645181581697,0.00031436,40877.0,40873.0,0.06118979]
[1645181581894,0.01510035,40874.0,40873.0,0.06118979]
[1645181582094,0.01510035,40874.0,40873.0,0.39249379]
[1645181582767,0.01510035,40874.0,40873.0,0.39449379]
[1645181584167,0.01510035,40874.0,40873.0,0.39249379]
[1645181584767,0.01510035,40874.0,40873.0,0.39449379]
[1645181585991,0.01510035,40874.0,40873.0,0.39249379]
[1645181586794,0.01659745,40874.0,40873.0,0.39449379]
[1645181588294,0.01659745,40874.0,40873.0,0.39260438]
[1645181593497,0.01659745,40874.0,40873.0,0.39253434]
[1645181596700,0.01806226,40874.0,40873.0,0.33141459]
[1645181599044,0.01806226,40874.0,40873.0,0.00011059]
[1645181600997,0.01806226,40874.0,40873.0,0.00211059]
[1645181602400,0.01806226,40874.0,40873.0,0.00011059]
[1645181603001,0.01806226,40874.0,40873.0,0.00211059]
[1645181604403,0.01806226,40874.0,40873.0,0.00011059]
[1645181605051,0.01806226,40874.0,40873.0,0.00211059]
[1645181606250,0.01806226,40874.0,40873.0,0.00011059]
[1645181607754,0.14803101,40877.0,40873.0,0.00011059]
[1645181607952,0.07378634,40878.0,40873.0,0.00011059]
[1645181608152,0.3,40877.0,40871.0,0.15070497]
[1645181608794,0.07378635,40878.0,40871.0,0.15070497]
[1645181608994,0.220224,40875.0,40871.0,0.15070497]
[1645181611396,0.220224,40875.0,40871.0,0.15370497]
[1645181611601,0.3,40874.0,40871.0,0.09250997]
[1645181611800,0.3,40874.0,40871.0,0.03131697]
[1645181612255,0.3,40874.0,40871.0,0.02831697]
[1645181613153,0.3,40874.0,40873.0,0.00011697]
[1645181613350,0.37,40874.0,40873.0,0.00011697]
[1645181616796,0.37265926,40874.0,40873.0,0.00011697]
[1645181617196,0.37265926,40874.0,40873.0,0.00111697]
[1645181618405,0.07265926,40874.0,40873.0,0.00111697]
[1645181619201,0.07265926,40874.0,40873.0,0.00211697]
[1645181619404,0.00265926,40874.0,40873.0,0.00211697]
[1645181619847,0.00265926,40874.0,40873.0,0.00011697]
[1645181621147,0.00265926,40874.0,40873.0,0.00111697]
[1645181622447,0.00265926,40874.0,40873.0,0.00011697]
[1645181623047,0.00265926,40874.0,40873.0,0.00111697]
[1645181623248,0.00265926,40874.0,40873.0,0.001]
[1645181624296,0.00265926,40874.0,40871.0,0.02831697]
[1645181624498,0.00297205,40874.0,40871.0,0.02831697]
[1645181625096,0.00297205,40874.0,40871.0,0.03031697]
[1645181626497,0.00297205,40874.0,40871.0,0.02831697]
[1645181626699,0.061206,40873.0,40871.0,0.02831697]
[1645181627097,0.00297205,40874.0,40871.0,0.02831697]
[1645181627948,0.00297205,40874.0,40871.0,0.0282454]
[1645181628147,0.00297205,40874.0,40873.0,0.00011697]
[1645181628348,0.00265926,40874.0,40873.0,0.00011697]
[1645181629149,0.00265926,40874.0,40873.0,0.00111697]
[1645181630347,0.00265926,40874.0,40873.0,0.00011697]
[1645181631197,0.00265926,40874.0,40873.0,0.00111697]
[1645181632497,0.00265926,40874.0,40873.0,0.00011697]
[1645181632899,0.04733206,40876.0,40873.0,0.00011697]
[1645181633099,0.07376372,40878.0,40873.0,0.00011697]
[1645181633399,0.07339045,40878.0,40871.0,0.1506414]
[1645181633601,0.07376373,40878.0,40871.0,0.1506414]
[1645181634004,0.40652692,40878.0,40871.0,0.1506414]
[1645181634599,0.40615364,40878.0,40871.0,0.1506414]
[1645181634850,0.40652692,40878.0,40871.0,0.1506414]
[1645181635150,0.07376373,40878.0,40871.0,0.1506414]
[1645181635748,0.07339045,40878.0,40871.0,0.1506414]
[1645181635949,0.07376372,40878.0,40871.0,0.1506414]
[1645181636748,0.00237164,40877.0,40871.0,0.1506414]
[1645181638250,0.00237164,40877.0,40873.0,0.00011697]
[1645181641106,0.00237164,40877.0,40873.0,0.00111697]
[1645181642355,0.00237164,40877.0,40873.0,0.00011697]
[1645181643153,0.00237164,40877.0,40873.0,0.001]
[1645181643553,0.33337074,40876.0,40873.0,0.001]
[1645181644054,0.00237164,40877.0,40873.0,0.001]
[1645181644455,0.00237164,40877.0,40871.0,0.20064106]
[1645181645254,0.00237164,40877.0,40871.0,0.20264106]
[1645181645754,0.00237164,40877.0,40871.0,0.15264106]
[1645181646399,0.00237164,40877.0,40871.0,0.15064106]
[1645181646802,0.00237164,40877.0,40871.0,0.20064106]
[1645181647201,0.00237164,40877.0,40871.0,0.20264106]
[1645181648299,0.00237164,40877.0,40873.0,0.00011697]
[1645181648500,0.00237164,40877.0,40873.0,0.06130743]
[1645181648702,0.00268286,40877.0,40874.0,0.061192]
[1645181648900,0.07,40875.0,40874.0,0.061192]
[1645181651156,0.07,40875.0,40874.0,0.062192]
[1645181652461,0.07,40875.0,40874.0,0.061192]
[1645181653260,0.07,40875.0,40874.0,0.0623088]
[1645181653502,0.0673499,40875.0,40874.0,0.0623088]
[1645181654501,0.0673499,40875.0,40874.0,0.0613088]
[1645181655301,0.0673499,40875.0,40874.0,0.0623088]
[1645181656804,0.07001789,40875.0,40874.0,0.0623088]
[1645181657003,0.07001789,40875.0,40874.0,0.0613088]
[1645181658249,0.07001789,40875.0,40874.0,0.3926128]
[1645181658652,0.07001789,40875.0,40874.0,0.0613088]
[1645181659052,0.07001789,40875.0,40874.0,0.0001168]
[1645181659254,0.07001789,40875.0,40874.0,0.0021168]
[1645181659454,0.07001789,40875.0,40874.0,0.3334208]
[1645181660456,0.07001789,40875.0,40874.0,0.3314208]
[1645181661302,0.07001789,40875.0,40874.0,0.3334208]
[1645181662505,0.07001789,40875.0,40874.0,0.3314208]
[1645181663305,0.07001789,40875.0,40874.0,0.3334208]
[1645181664507,0.07001789,40875.0,40874.0,0.3314208]
[1645181667354,0.07001789,40875.0,40874.0,0.3334208]
[1645181668502,0.07001789,40875.0,40874.0,0.3314208]
[1645181669306,0.07001789,40875.0,40874.0,0.3334208]
[1645181671206,0.07001789,40875.0,40874.0,0.3314208]
[1645181671608,0.06870897,40875.0,40874.0,0.3314208]
[1645181677019,0.06870897,40875.0,40874.0,0.33130631]
[1645181678221,0.06870897,40875.0,40874.0,0.3314208]
[1645181679754,0.06870897,40875.0,40874.0,0.3814208]
[1645181681357,0.06870897,40875.0,40874.0,0.3834208]
[1645181682658,0.06870897,40875.0,40874.0,0.3814208]
[1645181683502,0.06870897,40875.0,40874.0,0.3834208]
[1645181686706,0.06870897,40875.0,40874.0,0.3814208]
[1645181687856,0.06870897,40875.0,40874.0,0.0001168]
[1645181688955,0.06870897,40875.0,40874.0,0.3314208]
[1645181689157,0.06870897,40875.0,40874.0,0.3814208]
[1645181689357,0.06870897,40875.0,40874.0,0.3834208]
[1645181689758,0.06870897,40875.0,40874.0,0.0521168]
[1645181689958,0.06870897,40875.0,40874.0,0.0021168]
[1645181690564,0.06870897,40875.0,40874.0,0.0001168]
[1645181701610,1.51e-06,40874.0,40872.0,0.00031581]
[1645181701810,1.51e-06,40874.0,40871.0,0.17269681]
[1645181702009,0.26053674,40872.0,40871.0,0.17269681]
[1645181702266,0.26053674,40872.0,40871.0,0.56519751]
[1645181702460,1.51e-06,40874.0,40871.0,0.56519751]
[1645181702659,1.51e-06,40874.0,40871.0,0.17269681]
[1645181703060,1.51e-06,40874.0,40872.0,0.331304]
[1645181703360,1.51e-06,40874.0,40872.0,0.00031581]
[1645181703866,1.51e-06,40874.0,40871.0,0.17269681]
[1645181704460,1.51e-06,40874.0,40872.0,0.331304]
[1645181704661,1.51e-06,40874.0,40872.0,0.00031581]
[1645181704861,1.51e-06,40874.0,40871.0,0.05031581]
[1645181705061,1.51e-06,40874.0,40872.0,0.331304]
[1645181705264,1.51e-06,40874.0,40872.0,0.05031581]
[1645181705563,1.51e-06,40874.0,40871.0,0.00031581]
[1645181705763,1.51e-06,40874.0,40872.0,0.331304]
[1645181706007,1.51e-06,40874.0,40870.0,0.00977333]
[1645181706308,1.51e-06,40874.0,40871.0,0.381304]
[1645181706511,1.51e-06,40874.0,40871.0,0.05]
[1645181706709,1.51e-06,40874.0,40871.0,0.00031581]
[1645181706710,0.00364689,40873.0,40871.0,0.00031581]
[1645181706909,0.00364689,40873.0,40870.0,0.17276733]
[1645181707110,0.00364689,40873.0,40870.0,0.12276733]
[1645181707711,0.06485089,40873.0,40870.0,0.12276733]
[1645181707911,0.06485089,40873.0,40871.0,0.331304]
[1645181708111,0.06485089,40873.0,40871.0,0.33161981]
[1645181708311,0.06502624,40873.0,40871.0,0.33161981]
[1645181708913,0.00382224,40873.0,40871.0,0.33161981]
[1645181709514,0.00382224,40873.0,40871.0,0.33361981]
[1645181710757,0.00382224,40873.0,40871.0,0.33161981]
[1645181711562,0.00382224,40873.0,40872.0,0.3]
[1645181711766,0.00382224,40873.0,40872.0,0.63161981]
[1645181711960,1.51e-06,40874.0,40873.0,0.00764447]
[1645181712358,1.51e-06,40874.0,40873.0,0.33894847]
[1645181716816,0.00144926,40874.0,40873.0,0.33894847]
[1645181718160,0.00144926,40874.0,40873.0,0.33905985]
[1645181719563,0.00144926,40874.0,40873.0,0.34105985]
[1645181720768,0.00144926,40874.0,40873.0,0.33905985]
[1645181722908,0.00144926,40874.0,40873.0,0.00775585]
[1645181725564,0.00135604,40874.0,40873.0,0.00775585]
[1645181731511,0.00135604,40874.0,40873.0,0.00975585]
[1645181732759,0.00135604,40874.0,40873.0,0.00775585]
[1645181733561,0.00135604,40874.0,40873.0,0.00975585]
[1645181734860,0.00135604,40874.0,40873.0,0.00775585]
[1645181737722,0.00135604,40874.0,40873.0,0.00975585]
[1645181738818,0.00135604,40874.0,40873.0,0.00775585]
[1645181742265,0.00102779,40874.0,40873.0,0.00775585]
[1645181743510,0.00102779,40874.0,40873.0,0.00975585]
[1645181744911,0.00102779,40874.0,40873.0,0.00775585]
[1645181746711,0.00157338,40874.0,40873.0,0.00775585]
[1645181747560,0.00157338,40874.0,40873.0,0.00975585]
[1645181748763,0.00157338,40874.0,40873.0,0.00775585]
[1645181749369,0.00157338,40874.0,40873.0,0.00638569]
[1645181751410,0.0018846,40876.0,40873.0,0.00638569]
[1645181751609,0.00157338,40876.0,40873.0,0.00838569]
[1645181751809,0.0018846,40876.0,40873.0,0.00838569]
[1645181752911,0.0018846,40876.0,40873.0,0.00638569]
[1645181753713,0.0018846,40876.0,40873.0,0.00838569]
[1645181754865,0.00157338,40876.0,40873.0,0.00838569]
[1645181755264,0.0018846,40876.0,40873.0,0.00838569]
[1645181755464,0.00157338,40876.0,40873.0,0.00838569]
[1645181756266,0.0018846,40876.0,40873.0,0.00838569]
[1645181756468,0.00157338,40876.0,40873.0,0.00838569]
[1645181756665,0.00299483,40876.0,40873.0,0.00838569]
[1645181757465,0.00330605,40876.0,40873.0,0.00638569]
[1645181757666,0.00299483,40876.0,40873.0,0.00838569]
[1645181758268,0.00299483,40876.0,40875.0,0.00011104]
[1645181758514,0.07034473,40876.0,40875.0,0.00011104]
[1645181759611,0.07034473,40876.0,40875.0,0.00211104]
[1645181760614,0.32617223,40876.0,40875.0,0.00211104]
[1645181760815,0.32617223,40876.0,40875.0,0.00011104]
[1645181761018,0.07034473,40876.0,40875.0,0.00011104]
[1645181762115,0.33538424,40876.0,40875.0,0.00011104]
[1645181763162,0.33538424,40876.0,40873.0,0.00670116]
[1645181763363,0.26834556,40876.0,40873.0,0.00638535]
[1645181763566,0.26803434,40876.0,40873.0,0.00638535]
[1645181763763,0.26803434,40876.0,40875.0,0.002]
[1645181763965,0.33538424,40876.0,40875.0,0.002]
[1645181764965,0.33538424,40876.0,40873.0,0.00670116]
[1645181765166,0.26803434,40876.0,40873.0,0.00638535]
[1645181765667,0.26834556,40876.0,40873.0,0.00638535]
[1645181765869,0.26803434,40876.0,40873.0,0.00638535]
[1645181766511,0.3,40875.0,40873.0,0.00638535]
[1645181766912,0.00031122,40875.0,40873.0,0.00638535]
[1645181767111,0.26803434,40876.0,40873.0,0.00638535]
[1645181767312,0.00031122,40875.0,40873.0,0.00638535]
[1645181767611,0.26834556,40876.0,40873.0,0.00838535]
[1645181767812,0.00031122,40875.0,40873.0,0.00838535]
[1645181768013,0.26803434,40876.0,40873.0,0.00838535]
[1645181768211,0.00031122,40875.0,40873.0,0.00827431]
[1645181768413,0.26834556,40876.0,40873.0,0.00827431]
[1645181768623,0.00031122,40875.0,40873.0,0.00827431]
[1645181768812,0.56803434,40876.0,40873.0,0.00627431]
[1645181769017,0.13262422,40875.0,40873.0,0.00627431]
[1645181769212,0.132313,40875.0,40873.0,0.00627431]
[1645181769413,0.25504122,40875.0,40873.0,0.01167431]
[1645181770064,0.00031122,40875.0,40873.0,0.01167431]
[1645181770268,0.26803434,40876.0,40873.0,0.01167431]
[1645181770464,0.00031122,40875.0,40873.0,0.01167431]
[1645181770863,0.00299483,40876.0,40873.0,0.01167431]
[1645181771064,0.00031122,40875.0,40873.0,0.01167431]
[1645181771267,0.00330605,40876.0,40873.0,0.01167431]
[1645181771467,0.00031122,40875.0,40873.0,0.01167431]
[1645181771666,0.00031122,40875.0,40873.0,0.07285919]
[1645181771867,0.00299483,40876.0,40873.0,0.07285919]
[1645181772066,0.00031122,40875.0,40873.0,0.07285919]
[1645181772268,0.00330605,40876.0,40873.0,0.07285919]
[1645181772467,0.00299483,40876.0,40873.0,0.07285919]
[1645181772869,0.07338632,40880.0,40876.0,0.00598965]
[1645181772870,0.00037327,40878.0,40876.0,0.00598965]
[1645181773170,0.0673499,40877.0,40876.0,0.06716846]
[1645181773625,0.0673499,40877.0,40876.0,0.33170128]
[1645181774925,0.0673499,40877.0,40876.0,0.32970128]
[1645181776727,0.0700391,40877.0,40876.0,0.32970128]
[1645181777367,0.0700391,40877.0,40876.0,0.32900128]
[1645181778368,0.0700391,40877.0,40876.0,0.32911214]
[1645181778567,0.0700391,40877.0,40876.0,0.26863333]
[1645181779667,0.0700391,40877.0,40876.0,0.27063333]
[1645181780769,0.0700391,40877.0,40876.0,0.00810051]
[1645181781024,0.0700391,40877.0,40876.0,0.00610051]
[1645181785662,0.0700391,40877.0,40876.0,0.00810051]
[1645181786867,0.0700391,40877.0,40876.0,0.00610051]
[1645181791618,0.0700391,40877.0,40876.0,0.00810051]
[1645181792961,0.0700391,40877.0,40876.0,0.00610051]
[1645181795670,0.0650391,40877.0,40876.0,0.00610051]
[1645181796615,0.06644154,40877.0,40876.0,0.00610051]
[1645181801967,0.18901851,40877.0,40876.0,0.00610051]
[1645181802968,0.00068539,40879.0,40877.0,0.36708405]
[1645181803167,0.065,40878.0,40877.0,0.36708405]
[1645181806519,0.06742409,40878.0,40877.0,0.36708405]
[1645181808166,0.06742409,40878.0,40877.0,0.36719474]
[1645181809366,0.06742409,40878.0,40877.0,0.26639674]
[1645181815671,0.06742409,40878.0,40877.0,0.26839674]
[1645181816974,0.06742409,40878.0,40877.0,0.26639674]
[1645181817784,0.00242409,40878.0,40877.0,0.26839674]
[1645181818918,0.00242409,40878.0,40877.0,0.26639674]
[1645181821821,0.00242409,40878.0,40877.0,0.26839674]
[1645181823076,0.00242409,40878.0,40877.0,0.26639674]
[1645181824672,0.00232102,40878.0,40877.0,0.26639674]
[1645181825775,0.00232102,40878.0,40877.0,0.26839674]
[1645181827018,0.00232102,40878.0,40877.0,0.26639674]
[1645181832976,0.00031122,40879.0,40877.0,0.26639674]
[1645181832977,0.00031122,40879.0,40878.0,0.00464204]
[1645181833182,0.07376018,40880.0,40878.0,0.00464204]
[1645181833819,0.07338632,40880.0,40878.0,0.00464204]
[1645181834422,0.07369754,40880.0,40878.0,0.00464204]
[1645181835421,0.07338632,40880.0,40878.0,0.00464204]
[1645181835623,0.07369754,40880.0,40878.0,0.00464204]
[1645181836422,0.07338632,40880.0,40878.0,0.00464204]
[1645181836621,0.0011077,40879.0,40878.0,0.00464204]
[1645181836822,0.07474105,40880.0,40879.0,0.2388923]
[1645181837022,0.07442983,40880.0,40879.0,0.2388923]
[1645181837870,0.07442983,40880.0,40879.0,0.2408923]
[1645181838070,0.07442983,40880.0,40879.0,0.24100761]
[1645181839572,0.07442983,40880.0,40879.0,0.23900761]
[1645181839771,0.07442983,40880.0,40879.0,0.24100761]
[1645181841025,0.07442983,40880.0,40879.0,0.23900761]
[1645181841422,0.07560011,40880.0,40879.0,0.23900761]
[1645181843923,0.07560011,40880.0,40879.0,0.24100761]
[1645181844425,0.07216845,40880.0,40879.0,0.24100761]
[1645181845071,0.07216845,40880.0,40879.0,0.23900761]
[1645181845874,0.07216845,40880.0,40879.0,0.24100761]
[1645181846872,0.07326636,40880.0,40879.0,0.24100761]
[1645181847073,0.07326636,40880.0,40879.0,0.23900761]
[1645181848521,0.07326636,40880.0,40879.0,0.24100761]
[1645181849923,0.07326636,40880.0,40879.0,0.24300761]
[1645181850122,0.07326636,40880.0,40879.0,0.24100761]
[1645181850324,0.07326636,40880.0,40879.0,0.23900761]
[1645181851428,0.07326636,40880.0,40879.0,0.33201761]
[1645181851827,0.07326636,40880.0,40879.0,0.33401761]
[1645181853670,0.07326636,40880.0,40879.0,0.33201761]
[1645181853870,0.07326636,40880.0,40879.0,0.33401761]
[1645181855071,0.07326636,40880.0,40879.0,0.33201761]
[1645181856021,0.07326636,40880.0,40879.0,0.33401761]
[1645181857222,0.07326636,40880.0,40879.0,0.33201761]
[1645181857922,0.07326636,40880.0,40879.0,0.33401761]
[1645181858725,0.07326636,40880.0,40879.0,0.24100761]
[1645181859124,0.07326636,40880.0,40879.0,0.23900761]
[1645181859969,0.07326636,40880.0,40879.0,0.24100761]